lending/lending_fUSD_20240111
["ID","MTS","AMOUNT","RATE_DAILY","PERIOD"]
[311232640,1704988279229,-628.89,0.00045205,30]
[311232641,1704988279239,-500.0,0.00045205,30]
[311232642,1704988279249,-500.0,0.00045205,30]
[311232643,1704988279258,-550.0,0.00045205,7]
[311232644,1704988279268,-500.0,0.00045205,30]
[311232645,1704988279277,-500.0,0.00045205,30]
[311232646,1704988279287,-500.0,0.00045205,30]
[311232647,1704988279297,-500.0,0.00045205,30]
[311232648,1704988279307,-500.0,0.00045205,30]
[311232649,1704988279317,-500.0,0.00045205,30]
[311232650,1704988279329,-393.05,0.00045205,30]
[311232651,1704988279339,-416.72,0.00045205,30]
[311232652,1704988279349,-555.09,0.00045205,30]
[311232653,1704988279358,-483.48,0.00045205,30]
[311232654,1704988279368,-500.0,0.00045205,30]
[311232655,1704988279377,-500.0,0.00045205,30]
[311232656,1704988279386,-1000.0,0.00045205,2]
[311232657,1704988279396,-314.72,0.00045205,30]
[311232658,1704988279406,-377.55,0.00045205,30]
[311232659,1704988279415,-587.91200076,0.00045205,30]
[311232660,1704988279424,-500.0,0.00045205,30]
[311232661,1704988279433,-500.0,0.00045205,30]
[311232662,1704988279443,-726.52,0.00045205,30]
[311232663,1704988279452,-500.0,0.00045205,30]
[311232664,1704988279467,-500.0,0.00045205,30]
[311232665,1704988279476,-500.0,0.00045205,30]
[311232666,1704988279485,-500.0,0.00045205,30]
[311232667,1704988279495,-500.0,0.00045205,30]
[311232668,1704988279505,-500.0,0.00045205,30]
[311232669,1704988279515,-500.0,0.00045205,30]
[311232670,1704988279524,-489.9,0.00045205,30]
[311232671,1704988279534,-500.0,0.00045205,30]
[311232672,1704988279545,-500.0,0.00045205,2]
[311232673,1704988279555,-500.0,0.00045205,30]
[311232674,1704988279564,-500.0,0.00045205,30]
[311232675,1704988279574,-500.0,0.00045205,30]
[311232676,1704988279588,-4415.54,0.00045205,30]
[311232677,1704988279597,-500.0,0.00045205,30]
[311232678,1704988279607,-437.77,0.00045205,30]
[311232679,1704988279617,-392.37,0.00045205,30]
[311232680,1704988279626,-605.88745749,0.00045205,30]
[311232681,1704988279636,-330.29,0.00045205,30]
[311232682,1704988279645,-500.0,0.00045205,30]
[311232683,1704988279655,-500.0,0.00045205,30]
[311232684,1704988279664,-666.0,0.00045205,2]
[311232685,1704988279674,-500.0,0.00045205,30]
[311232686,1704988279684,-500.0,0.00045205,30]
[311232687,1704988279694,-500.0,0.00045205,30]
[311232688,1704988279704,-500.0,0.00045205,30]
[311232689,1704988279713,-500.0,0.00045205,30]
[311232690,1704988279724,-500.0,0.00045205,30]
[311232691,1704988279733,-500.0,0.00045205,30]
[311232692,1704988279742,-880.41,0.00045205,30]
[311232693,1704988279752,-500.0,0.00045205,30]
[311232694,1704988279762,-516.19,0.00045205,30]
[311232695,1704988279771,-519.73,0.00045205,30]
[311232696,1704988279780,-500.0,0.00045205,30]
[311232697,1704988279790,-500.0,0.00045205,30]
[311232698,1704988279799,-565.99,0.00045205,30]
[311232699,1704988279809,-500.0,0.00045205,30]
[311232700,1704988279818,-163.91,0.00045205,30]
[311232701,1704988279830,-942.54,0.00045205,30]
[311232702,1704988279840,-504.81766975,0.00045205,30]
[311232703,1704988279849,-2952.42,0.00045205,30]
[311232704,1704988279859,-500.0,0.00045205,30]
[311232705,1704988279869,-500.0,0.00045205,30]
[311232706,1704988279879,-500.0,0.00045205,30]
[311232707,1704988279889,-630.37,0.00045205,30]
[311232708,1704988279899,-355.98,0.00045205,30]
[311232709,1704988279909,-500.0,0.00045205,30]
[311232710,1704988279919,-500.0,0.00045205,30]
[311232711,1704988279929,-500.0,0.00045205,30]
[311232712,1704988279938,-500.0,0.00045205,30]
[311232713,1704988279948,-500.0,0.00045205,30]
[311232714,1704988279958,-500.0,0.00045205,30]
[311232715,1704988279968,-500.0,0.00045205,30]
[311232716,1704988279977,-500.0,0.00045205,30]
[311232717,1704988279987,-500.0,0.00045205,30]
[311232718,1704988279996,-500.0,0.00045205,30]
[311232719,1704988280006,-500.0,0.00045205,30]
[311232720,1704988280015,-500.0,0.00045205,30]
[311232721,1704988280025,-500.0,0.00045205,30]
[311232722,1704988280035,-500.0,0.00045205,2]
[311232723,1704988280044,-500.0,0.00045205,30]
[311232724,1704988280053,-500.0,0.00045205,30]
[311232725,1704988280062,-500.0,0.00045205,30]
[311232726,1704988280072,-500.0,0.00045205,30]
[311232727,1704988280086,-500.0,0.00045205,30]
[311232728,1704988280096,-594.99,0.00045205,30]
[311232729,1704988280107,-500.0,0.00045205,30]
[311232730,1704988280117,-668.36,0.00045205,30]
[311232731,1704988280127,-500.0,0.00045205,30]
[311232732,1704988280139,-500.0,0.00045205,30]
[311232733,1704988280149,-500.0,0.00045205,30]
[311232734,1704988280159,-1175.74,0.00045205,30]
[311232735,1704988280277,-500.0,0.00045205,30]
[311232736,1704988280288,-500.0,0.00045205,30]
[311232737,1704988280298,-160.71051449,0.00045205,30]
[311232738,1704988280309,-500.0,0.00045205,30]
[311232739,1704988280319,-500.0,0.00045205,30]
[311232740,1704988280332,-500.0,0.00045205,30]
[311232741,1704988280342,-563.27,0.00045205,30]
[311232742,1704988280353,-500.0,0.00045205,30]
[311232743,1704988280363,-500.0,0.00045205,30]
[311232744,1704988280374,-500.0,0.00045205,30]
[311232745,1704988280384,-500.0,0.00045205,30]
[311232746,1704988280395,-1269.85,0.00045205,30]
[311232747,1704988280406,-500.0,0.00045205,30]
[311232748,1704988280417,-500.0,0.00045205,30]
[311232749,1704988280428,-500.0,0.00045205,30]
[311232750,1704988280438,-776.0,0.00045205,30]
[311232751,1704988280449,-486.37286703,0.00045205,30]
[311232752,1704988280459,-500.0,0.00045205,30]
[311232753,1704988280469,-500.0,0.00045205,30]
[311232754,1704988280480,-550.19,0.00045205,30]
[311232755,1704988280490,-500.0,0.00045205,30]
[311232756,1704988280500,-631.99,0.00045205,30]
[311232757,1704988280510,-500.0,0.00045205,30]
[311232758,1704988280521,-500.0,0.00045205,30]
[311232759,1704988280532,-500.0,0.00045205,30]
[311232760,1704988280542,-500.0,0.00045205,30]
[311232761,1704988280552,-500.0,0.00045205,30]
[311232762,1704988280562,-500.0,0.00045205,30]
[311232763,1704988280571,-500.0,0.00045205,30]
[311232764,1704988280584,-2450.7,0.00045205,30]
[311232765,1704988280595,-500.0,0.00045205,30]
[311232766,1704988280604,-500.0,0.00045205,30]
[311232767,1704988280614,-500.0,0.00045205,30]
[311232768,1704988280625,-500.0,0.00045205,30]
[311232769,1704988280635,-763.89,0.00045205,30]
[311232770,1704988280645,-631.47,0.00045205,30]
[311232771,1704988280654,-500.0,0.00045205,30]
[311232772,1704988280665,-500.0,0.00045205,30]
[311232773,1704988280674,-2070.2,0.00045205,30]
[311232774,1704988280685,-500.0,0.00045205,30]
[311232775,1704988280694,-500.0,0.00045205,30]
[311232776,1704988280704,-4105.03,0.00045205,30]
[311232777,1704988280713,-500.0,0.00045205,30]
[311232778,1704988280724,-500.0,0.00045205,30]
[311232779,1704988280734,-500.0,0.00045205,30]
[311232780,1704988280743,-591.97,0.00045205,30]
[311232781,1704988280753,-500.0,0.00045205,30]
[311232782,1704988280763,-500.0,0.00045205,30]
[311232783,1704988280773,-500.0,0.00045205,30]
[311232784,1704988280783,-1000.0,0.00045205,2]
[311232785,1704988280793,-500.0,0.00045205,30]
[311232786,1704988280803,-500.0,0.00045205,30]
[311232787,1704988280814,-873.42,0.00045205,30]
[311232788,1704988280824,-500.0,0.00045205,30]
[311232789,1704988280839,-500.0,0.00045205,30]
[311232790,1704988280850,-500.0,0.00045205,30]
[311232791,1704988280860,-5007.29,0.00045205,5]
[311232792,1704988280871,-520.28,0.00045205,30]
[311232793,1704988280881,-674.68,0.00045205,30]
[311232794,1704988280891,-500.0,0.00045205,30]
[311232795,1704988280901,-500.0,0.00045205,30]
[311232796,1704988280911,-814.89,0.00045205,30]
[311232797,1704988280921,-610.25,0.00045205,30]
[311232798,1704988280931,-500.0,0.00045205,30]
[311232799,1704988280941,-601.29,0.00045205,30]
[311232800,1704988280951,-500.0,0.00045205,30]
[311232801,1704988280961,-500.0,0.00045205,30]
[311232802,1704988280971,-1000.0,0.00045205,10]
[311232803,1704988280981,-503.27,0.00045205,30]
[311232804,1704988280991,-500.0,0.00045205,30]
[311232805,1704988281002,-500.0,0.00045205,30]
[311232806,1704988281012,-500.0,0.00045205,30]
[311232807,1704988281022,-1423.0,0.00045205,30]
[311232808,1704988281033,-588.0,0.00045205,30]
[311232809,1704988281044,-500.0,0.00045205,30]
[311232810,1704988281055,-500.0,0.00045205,30]
[311232811,1704988281065,-241.95,0.00045205,30]
[311232812,1704988281076,-4201.26,0.00045205,5]
[311232813,1704988281094,-500.0,0.00045205,30]
[311232814,1704988281104,-500.0,0.00045205,30]
[311232815,1704988281115,-4614.86,0.00045205,30]
[311232816,1704988281127,-500.0,0.00045205,30]
[311232817,1704988281138,-500.0,0.00045205,30]
[311232818,1704988281149,-160.36,0.00045205,2]
[311232819,1704988281160,-3584.28679271,0.00045216,18]
[311232820,1704988281169,-5519.69894449,0.00045272,14]
[311232821,1704988281180,-5000.0,0.00045272,14]
[311232822,1704988281190,-5000.0,0.00045272,17]
[311232823,1704988281201,-5000.0,0.00045272,16]
[311232824,1704988281211,-5000.0,0.00045272,17]
[311232825,1704988281221,-2000.0,0.00045275,7]
[311232826,1704988281232,-200.0,0.00045275,7]
[311232827,1704988281242,-2000.0,0.00045275,7]
[311232828,1704988281252,-200.0,0.00045275,7]
[311232829,1704988281262,-200.0,0.00045275,7]
[311232830,1704988281272,-500.46144,0.000453,8]
[311232831,1704988281283,-772.15,0.00045417,2]
[311232832,1704988281293,-500.0,0.00045479,30]
[311232833,1704988281303,-238.77553746,0.00045479,4]
[311232834,1704988281313,-1000.0,0.00045479,2]
[311232835,1704988281323,-500.0,0.00045479,30]
[311232836,1704988281337,-500.0,0.00045479,30]
[311232837,1704988281346,-500.0,0.00045479,30]
[311232838,1704988281356,-519.41390109,0.00045479,30]
[311232839,1704988281366,-500.0,0.00045479,30]
[311232840,1704988281375,-569.55,0.00045479,30]
[311232841,1704988281385,-500.0,0.00045479,30]
[311232842,1704988281394,-274.32,0.00045479,30]
[311232843,1704988281404,-500.0,0.00045479,30]
[311232844,1704988281413,-296.71,0.00045479,30]
[311232845,1704988281423,-368.35,0.00045479,30]
[311232846,1704988281433,-506.60772706,0.00045479,2]
[311232847,1704988281443,-500.0,0.00045479,30]
[311232848,1704988281453,-628.89,0.00045479,30]
[311232849,1704988281466,-500.0,0.00045479,30]
[311232850,1704988281475,-500.0,0.00045479,30]
[311232851,1704988281485,-550.0,0.00045479,7]
[311232852,1704988281495,-500.0,0.00045479,30]
[311232853,1704988281508,-204.55,0.00045479,30]
[311232854,1704988281518,-500.0,0.00045479,30]
[311232855,1704988281527,-500.0,0.00045479,30]
[311232856,1704988281538,-500.0,0.00045479,30]
[311232857,1704988281549,-500.0,0.00045479,30]
[311232858,1704988281559,-500.0,0.00045479,30]
[311232859,1704988281570,-175.86127342,0.00045479,30]
[311232860,1704988281583,-1000.0,0.00045479,2]
[311232861,1704988281594,-500.0,0.00045479,30]
[311232862,1704988281604,-500.0,0.00045479,30]
[311232863,1704988281614,-726.52,0.00045479,30]
[311232864,1704988281623,-500.0,0.00045479,30]
[311232865,1704988281635,-500.0,0.00045479,30]
[311232866,1704988281646,-500.0,0.00045479,30]
[311232867,1704988281656,-500.0,0.00045479,30]
[311232868,1704988281666,-500.0,0.00045479,30]
[311232869,1704988281675,-500.0,0.00045479,30]
[311232870,1704988281685,-495.51,0.00045479,30]
[311232871,1704988281695,-500.0,0.00045479,30]
[311232872,1704988281705,-500.0,0.00045479,2]
[311232873,1704988281716,-500.0,0.00045479,30]
[311232874,1704988281726,-531.63,0.00045479,30]
[311232875,1704988281736,-537.95,0.00045479,30]
[311232876,1704988281746,-4415.54,0.00045479,30]
[311232877,1704988281756,-500.0,0.00045479,30]
[311232878,1704988281766,-500.0,0.00045479,30]
[311232879,1704988281776,-500.0,0.00045479,30]
[311232880,1704988281785,-500.0,0.00045479,30]
[311232881,1704988281795,-500.0,0.00045479,30]
[311232882,1704988281804,-500.0,0.00045479,30]
[311232883,1704988281909,-500.0,0.00045479,30]
[311232884,1704988281919,-500.0,0.00045479,30]
[311232885,1704988281929,-500.0,0.00045479,30]
[311232886,1704988281938,-880.41,0.00045479,30]
[311232887,1704988281949,-500.0,0.00045479,30]
[311232888,1704988281959,-516.19,0.00045479,30]
[311232889,1704988281969,-519.73,0.00045479,30]
[311232890,1704988281980,-500.0,0.00045479,30]
[311232891,1704988281990,-500.0,0.00045479,30]
[311232892,1704988281999,-565.99,0.00045479,30]
[311232893,1704988282010,-500.0,0.00045479,30]
[311232894,1704988282023,-942.54,0.00045479,30]
[311232895,1704988282033,-2952.42,0.00045479,30]
[311232896,1704988282042,-500.0,0.00045479,30]
[311232897,1704988282051,-500.0,0.00045479,30]
[311232898,1704988282062,-500.0,0.00045479,30]
[311232899,1704988282072,-630.37,0.00045479,30]
[311232900,1704988282086,-500.0,0.00045479,30]
[311232901,1704988282096,-500.0,0.00045479,30]
[311232902,1704988282107,-500.0,0.00045479,30]
[311232903,1704988282117,-500.0,0.00045479,30]
[311232904,1704988282127,-500.0,0.00045479,30]
[311232905,1704988282137,-500.0,0.00045479,30]
[311232906,1704988282147,-500.0,0.00045479,30]
[311232907,1704988282157,-500.0,0.00045479,30]
[311232908,1704988282167,-500.0,0.00045479,30]
[311232909,1704988282177,-500.0,0.00045479,30]
[311232910,1704988282187,-500.0,0.00045479,30]
[311232911,1704988282198,-500.0,0.00045479,30]
[311232912,1704988282208,-500.0,0.00045479,30]
[311232913,1704988282218,-500.0,0.00045479,2]
[311232914,1704988282228,-500.0,0.00045479,30]
[311232915,1704988282238,-500.0,0.00045479,30]
[311232916,1704988282248,-500.0,0.00045479,30]
[311232917,1704988282258,-500.0,0.00045479,30]
[311232918,1704988282268,-500.0,0.00045479,30]
[311232919,1704988282278,-594.99,0.00045479,30]
[311232920,1704988282288,-500.0,0.00045479,30]
[311232921,1704988282299,-668.36,0.00045479,30]
[311232922,1704988282310,-419.18,0.00045479,30]
[311232923,1704988282320,-500.0,0.00045479,30]
[311232924,1704988282334,-585.00832744,0.00045479,30]
[311232925,1704988282344,-1175.74,0.00045479,30]
[311232926,1704988282355,-500.0,0.00045479,30]
[311232927,1704988282366,-500.0,0.00045479,30]
[311232928,1704988282376,-500.0,0.00045479,30]
[311232929,1704988282386,-500.0,0.00045479,30]
[311232930,1704988282397,-500.0,0.00045479,30]
[311232931,1704988282410,-500.0,0.00045479,30]
[311232932,1704988282422,-500.0,0.00045479,30]
[311232933,1704988282434,-500.0,0.00045479,30]
[311232934,1704988282445,-500.0,0.00045479,30]
[311232935,1704988282455,-1269.85,0.00045479,30]
[311232936,1704988282466,-500.0,0.00045479,30]
[311232937,1704988282477,-500.0,0.00045479,30]
[311232938,1704988282488,-500.0,0.00045479,30]
[311232939,1704988282499,-776.0,0.00045479,30]
[311232940,1704988282510,-500.0,0.00045479,30]
[311232941,1704988282521,-500.0,0.00045479,30]
[311232942,1704988282531,-500.0,0.00045479,30]
[311232943,1704988282542,-631.99,0.00045479,30]
[311232944,1704988282553,-500.0,0.00045479,30]
[311232945,1704988282566,-500.0,0.00045479,30]
[311232946,1704988282577,-500.0,0.00045479,30]
[311232947,1704988282602,-500.0,0.00045479,30]
[311232948,1704988282613,-500.0,0.00045479,30]
[311232949,1704988282625,-500.0,0.00045479,30]
[311232950,1704988282636,-500.0,0.00045479,30]
[311232951,1704988282652,-2450.7,0.00045479,30]
[311232952,1704988282675,-500.0,0.00045479,30]
[311232953,1704988282693,-500.0,0.00045479,30]
[311232954,1704988282716,-500.0,0.00045479,30]
[311232955,1704988282733,-500.0,0.00045479,30]
[311232956,1704988282751,-763.89,0.00045479,30]
[311232957,1704988282770,-631.47,0.00045479,30]
[311232958,1704988282786,-500.0,0.00045479,30]
[311232959,1704988282808,-500.0,0.00045479,30]
[311232960,1704988282826,-2070.2,0.00045479,30]
[311232961,1704988282849,-500.0,0.00045479,30]
[311232962,1704988282870,-500.0,0.00045479,30]
[311232963,1704988282884,-4105.03,0.00045479,30]
[311232964,1704988282899,-500.0,0.00045479,30]
[311232965,1704988282915,-500.0,0.00045479,30]
[311232966,1704988282931,-500.0,0.00045479,30]
[311232967,1704988282946,-591.97,0.00045479,30]
[311232968,1704988282961,-500.0,0.00045479,30]
[311232969,1704988282977,-500.0,0.00045479,30]
[311232970,1704988282993,-500.0,0.00045479,30]
[311232971,1704988283010,-1000.0,0.00045479,2]
[311232972,1704988283026,-500.0,0.00045479,30]
[311232973,1704988283041,-500.0,0.00045479,30]
[311232974,1704988283057,-873.42,0.00045479,30]
[311232975,1704988283072,-500.0,0.00045479,30]
[311232976,1704988283090,-500.0,0.00045479,30]
[311232977,1704988283105,-500.0,0.00045479,30]
[311232978,1704988283121,-5007.29,0.00045479,5]
[311232979,1704988283136,-520.28,0.00045479,30]
[311232980,1704988283151,-674.68,0.00045479,30]
[311232981,1704988283166,-500.0,0.00045479,30]
[311232982,1704988283180,-500.0,0.00045479,30]
[311232983,1704988283195,-814.89,0.00045479,30]
[311232984,1704988283209,-610.25,0.00045479,30]
[311232985,1704988283224,-500.0,0.00045479,30]
[311232986,1704988283239,-601.29,0.00045479,30]
[311232987,1704988283255,-500.0,0.00045479,30]
[311232988,1704988283271,-500.0,0.00045479,30]
[311232989,1704988283286,-1000.0,0.00045479,10]
[311232990,1704988283301,-503.27,0.00045479,30]
[311232991,1704988283317,-500.0,0.00045479,30]
[311232992,1704988283333,-500.0,0.00045479,30]
[311232993,1704988283350,-500.0,0.00045479,30]
[311232994,1704988283365,-1423.0,0.00045479,30]
[311232995,1704988283380,-500.0,0.00045479,30]
[311232996,1704988283396,-500.0,0.00045479,30]
[311232997,1704988283411,-4201.26,0.00045479,5]
[311232998,1704988283426,-588.0,0.00045479,30]
[311232999,1704988283440,-500.0,0.00045479,30]
[311233000,1704988283458,-294.94638256,0.00045479,30]
[311233001,1704988283475,-4614.86,0.00045479,30]
[311233002,1704988283490,-500.0,0.00045479,30]
[311233003,1704988283505,-500.0,0.00045479,30]
[311233004,1704988283520,-415.01439,0.0004548,28]
[311233005,1704988283536,-292.65,0.000455,60]
[311233006,1704988283552,-5226.98,0.000455,45]
[311233007,1704988283566,-10000.0,0.000455,45]
[311233008,1704988283584,-20000.0,0.000455,60]
[311233009,1704988283601,-10000.0,0.000455,45]
[311233010,1704988283618,-20000.0,0.000455,60]
[311233011,1704988283635,-10000.0,0.000455,45]
[311233012,1704988283652,-150.0,0.0004556,60]
[311233013,1704988283670,-500.0,0.00045568,7]
[311233014,1704988283687,-150.0,0.00045593,60]
[311233015,1704988283705,-150.0,0.00045593,60]
[311233016,1704988283722,-500.0,0.0004563,30]
[311233017,1704988283741,-150.0,0.00045666,5]
[311233018,1704988283758,-150.0,0.00045666,5]
[311233019,1704988283910,-150.0,0.0004567,15]
[311233020,1704988283930,-150.0,0.0004567,15]
[311233021,1704988283942,-3440.9283657,0.00045721,2]
[311233022,1704988283952,-14391.7135421,0.00045721,2]
[311233023,1704988283962,-13189.0297899,0.00045721,2]
[311233024,1704988283971,-2000.0,0.00045728,7]
[311233025,1704988283980,-200.0,0.00045728,7]
[311233026,1704988283990,-2000.0,0.00045728,7]
[311233027,1704988283999,-200.0,0.00045728,7]
[311233028,1704988284009,-169.2826101,0.00045752,30]
[311233029,1704988284017,-1000.0,0.00045753,2]
[311233030,1704988284027,-317.76,0.00045753,30]
[311233031,1704988284037,-170.73,0.00045753,30]
[311233032,1704988284047,-431.62010857,0.00045753,30]
[311233033,1704988284057,-500.0,0.00045753,30]
[311233034,1704988284066,-449.44,0.00045753,30]
[311233035,1704988284077,-536.35,0.00045753,30]
[311233036,1704988284090,-209.96,0.00045753,30]
[311233037,1704988284100,-628.89,0.00045753,30]
[311233038,1704988284109,-274.94,0.00045753,30]
[311233039,1704988284118,-500.0,0.00045753,30]
[311233040,1704988284128,-550.0,0.00045753,7]
[311233041,1704988284137,-232.11,0.00045753,30]
[311233042,1704988284146,-500.0,0.00045753,30]
[311233043,1704988284155,-500.0,0.00045753,30]
[311233044,1704988284165,-363.96,0.00045753,30]
[311233045,1704988284174,-500.0,0.00045753,30]
[311233046,1704988284183,-500.0,0.00045753,30]
[311233047,1704988284192,-1000.0,0.00045753,2]
[311233048,1704988284201,-500.0,0.00045753,30]
[311233049,1704988284211,-500.0,0.00045753,30]
[311233050,1704988284223,-726.52,0.00045753,30]
[311233051,1704988284233,-500.0,0.00045753,30]
[311233052,1704988284244,-500.0,0.00045753,30]
[311233053,1704988284255,-500.0,0.00045753,30]
[311233054,1704988284266,-567.77695034,0.00045753,30]
[311233055,1704988284278,-500.0,0.00045753,30]
[311233056,1704988284288,-500.0,0.00045753,30]
[311233057,1704988284300,-500.0,0.00045753,30]
[311233058,1704988284311,-506.33894096,0.00045753,2]
[311233059,1704988284323,-500.0,0.00045753,30]
[311233060,1704988284341,-4415.54,0.00045753,30]
[311233061,1704988284352,-500.0,0.00045753,30]
[311233062,1704988284362,-500.0,0.00045753,30]
[311233063,1704988284374,-287.41,0.00045753,30]
[311233064,1704988284385,-500.0,0.00045753,30]
[311233065,1704988284395,-500.0,0.00045753,30]
[311233066,1704988284405,-500.0,0.00045753,30]
[311233067,1704988284415,-500.0,0.00045753,30]
[311233068,1704988284426,-500.0,0.00045753,30]
[311233069,1704988284436,-500.0,0.00045753,30]
[311233070,1704988284446,-500.0,0.00045753,30]
[311233071,1704988284456,-880.41,0.00045753,30]
[311233072,1704988284466,-500.0,0.00045753,30]
[311233073,1704988284477,-516.19,0.00045753,30]
[311233074,1704988284488,-519.73,0.00045753,30]
[311233075,1704988284497,-500.0,0.00045753,30]
[311233076,1704988284508,-500.0,0.00045753,30]
[311233077,1704988284518,-565.99,0.00045753,30]
[311233078,1704988284528,-500.0,0.00045753,30]
[311233079,1704988284538,-942.54,0.00045753,30]
[311233080,1704988284548,-2952.42,0.00045753,30]
[311233081,1704988284557,-500.0,0.00045753,30]
[311233082,1704988284567,-500.0,0.00045753,30]
[311233083,1704988284577,-500.0,0.00045753,30]
[311233084,1704988284591,-630.37,0.00045753,30]
[311233085,1704988284602,-500.0,0.00045753,30]
[311233086,1704988284611,-500.0,0.00045753,30]
[311233087,1704988284621,-500.0,0.00045753,30]
[311233088,1704988284631,-500.0,0.00045753,30]
[311233089,1704988284641,-533.09,0.00045753,30]
[311233090,1704988284651,-500.0,0.00045753,30]
[311233091,1704988284660,-438.65,0.00045753,30]
[311233092,1704988284670,-500.0,0.00045753,30]
[311233093,1704988284679,-222.50269156,0.00045753,30]
[311233094,1704988284689,-500.0,0.00045753,30]
[311233095,1704988284698,-500.0,0.00045753,30]
[311233096,1704988284708,-500.0,0.00045753,30]
[311233097,1704988284717,-500.0,0.00045753,30]
[311233098,1704988284726,-500.0,0.00045753,2]
[311233099,1704988284736,-500.0,0.00045753,30]
[311233100,1704988284745,-500.0,0.00045753,30]
[311233101,1704988284755,-500.0,0.00045753,30]
[311233102,1704988284764,-500.0,0.00045753,30]
[311233103,1704988284774,-500.0,0.00045753,30]
[311233104,1704988284784,-594.99,0.00045753,30]
[311233105,1704988284793,-500.0,0.00045753,30]
[311233106,1704988284803,-668.36,0.00045753,30]
[311233107,1704988284813,-500.0,0.00045753,30]
[311233108,1704988284823,-1175.74,0.00045753,30]
[311233109,1704988284837,-500.0,0.00045753,30]
[311233110,1704988284847,-500.0,0.00045753,30]
[311233111,1704988284858,-500.0,0.00045753,30]
[311233112,1704988284868,-500.0,0.00045753,30]
[311233113,1704988284878,-500.0,0.00045753,30]
[311233114,1704988284888,-500.0,0.00045753,30]
[311233115,1704988284898,-500.0,0.00045753,30]
[311233116,1704988284908,-500.0,0.00045753,30]
[311233117,1704988284918,-500.0,0.00045753,30]
[311233118,1704988284928,-1269.85,0.00045753,30]
[311233119,1704988284938,-500.0,0.00045753,30]
[311233120,1704988284948,-500.0,0.00045753,30]
[311233121,1704988284958,-500.0,0.00045753,30]
[311233122,1704988284968,-776.0,0.00045753,30]
[311233123,1704988284980,-500.0,0.00045753,30]
[311233124,1704988284990,-500.0,0.00045753,30]
[311233125,1704988285000,-500.0,0.00045753,30]
[311233126,1704988285011,-631.99,0.00045753,30]
[311233127,1704988285022,-500.0,0.00045753,30]
[311233128,1704988285032,-500.0,0.00045753,30]
[311233129,1704988285042,-500.0,0.00045753,30]
[311233130,1704988285051,-500.0,0.00045753,30]
[311233131,1704988285061,-500.0,0.00045753,30]
[311233132,1704988285071,-500.0,0.00045753,30]
[311233133,1704988285086,-500.0,0.00045753,30]
[311233134,1704988285096,-2450.7,0.00045753,30]
[311233135,1704988285106,-500.0,0.00045753,30]
[311233136,1704988285116,-500.0,0.00045753,30]
[311233137,1704988285125,-500.0,0.00045753,30]
[311233138,1704988285135,-500.0,0.00045753,30]
[311233139,1704988285145,-763.89,0.00045753,30]